Cogmind - Beta 10.2 @@@ ROGUE MODE // 2021.01.03 @ 19:31:18 Player: Rushional Result: Destroyed by H-66 Slayer with Gauss Rifle Performance ------------- Evolutions (5) 2500 Regions Visited (8) 1600 Robots Destroyed (135) 675 Value Destroyed (3886) 3886 Prototype IDs (11) 220 Alien Tech Used (0) 0 Bonus (407) 407 TOTAL SCORE: 9288 Bonus ------- High Alert Combat Kills 312 Follower Combat Kills 95 Cogmind --------- Core Integrity 0/1000 Matter 217/300 Energy 64/100 System Corruption 2% Temperature Cool (0) Movement Core (150) Ox2 Location -5/Factory Parts ------- > --- POWER (3) -------- (None) > --- PROPULSION (3) --- (None) > --- UTILITY (8) ------ Medium Storage Unit Advanced Targeting Computer Advanced Targeting Computer > --- WEAPON (3) ------- (None) > --- INVENTORY (8) ---- Light Angular Momentum Engine Light Fission Core Experimental Terrain Scan Processor Improved Weapon Cycler Improved Component Analysis Suite Peak State ------------ > --- POWER ------------ Fission Core Fission Core Micro Fission Core > --- PROPULSION ------- Advanced Treads Advanced Treads Improved Medium Treads > --- UTILITY ---------- Improved Heat Sink Improved Cooling System Medium Storage Unit Large Storage Unit Advanced Targeting Computer Advanced Targeting Computer Hacking Suite Improved Component Analysis Suite > --- WEAPON ----------- Advanced Plasma Cannon Gauss Rifle Advanced Assault Cannon > --- INVENTORY -------- Light Nuclear Core Enhanced Nuclear Core Light Treads Light Treads Advanced Sensor Array Experimental Terrain Scan Processor Experimental Terrain Scan Processor Improved Weapon Cycler Shock Rifle Particle Gun Autogun Guided EMP Blaster Heavy Rocket Launcher [Rating: 70] Favorites ----------- Power Light Nuclear Core Engine Heavy Ion Engine Power Core Light Nuclear Core Propulsion Advanced Treads Treads Advanced Treads Leg Aluminum Leg Wheel Wheel Utility Medium Storage Unit Device Improved Cooling System Storage Medium Storage Unit Processor Advanced Targeting Computer Hackware Hacking Suite Weapon Advanced Assault Cannon Energy Gun Particle Gun Energy Cannon Advanced Plasma Cannon Ballistic Gun Heavy Assault Rifle Ballistic Cannon Advanced Assault Cannon Launcher Guided EMP Blaster Build | -11 -10 -9 -9 -8 -7 -7 -7 -5 ------- Run | Scr Mat Mat Min Mat Fac Sto Rec Fac Slots Evolved 10 | . . 2 . 2 2 . . 4 Power 2 | . . . . 1 . . . 1 Propulsion 1 | . . . . . 1 . . . Utility 6 | . . 2 . 1 1 . . 2 Weapon 1 | . . . . . . . . 1 Parts Attached 162 | 10 11 24 3 56 14 10 5 29 Power 28 | 1 1 1 . 15 1 3 . 6 Engine 10 | 1 1 1 . 7 . . . . Core 18 | . . . . 8 1 3 . 6 Reactor . | . . . . . . . . . Propulsion 29 | 4 2 2 1 14 1 2 . 3 Treads 8 | . . . . 2 1 2 . 3 Leg 4 | . . . . 4 . . . . Wheel 17 | 4 2 2 1 8 . . . . Hover . | . . . . . . . . . Flight . | . . . . . . . . . Utility 52 | 3 2 10 . 14 8 2 5 8 Device 37 | 2 . 6 . 11 5 1 5 7 Storage 11 | 1 1 4 . 2 3 . . . Processor 3 | . 1 . . 1 . . . 1 Hackware 1 | . . . . . . 1 . . Protection . | . . . . . . . . . Artifact . | . . . . . . . . . Weapon 53 | 2 6 11 2 13 4 3 . 12 Energy Gun 21 | 1 1 3 2 8 1 2 . 3 Energy Cannon 15 | . 3 6 . 1 1 . . 4 Ballistic Gun 10 | 1 2 2 . 2 . . . 3 Ballistic Cannon 5 | . . . . 2 2 1 . . Launcher 2 | . . . . . . . . 2 Special Weapon . | . . . . . . . . . Impact Weapon . | . . . . . . . . . Slashing Weapon . | . . . . . . . . . Piercing Weapon . | . . . . . . . . . Special Melee Weapon . | . . . . . . . . . Unidentified Prototypes 4 | . . . 1 1 . 2 . . Parts Lost 60 | . . 6 1 21 . 9 . 23 Power 12 | . . . . 6 . 2 . 4 Propulsion 15 | . . 2 1 5 . 2 . 5 Utility 14 | . . 3 . 4 . 2 . 5 Weapon 19 | . . 1 . 6 . 3 . 9 Highest Loss Streak 10 | . . 6 1 5 . 5 . 10 Average Slot Usage (%) 96 | . 99 94 99 97 99 97 99 91 Engine 5 | . 14 11 11 10 7 3 . . Core 9 | . . . . 6 7 10 15 15 Treads 13 | . . . . 4 23 22 23 15 Leg 1 | . . . . 7 . . . . Wheel 5 | . 27 21 21 5 . . . . Device 17 | . 9 23 22 17 22 21 14 15 Storage 14 | . 14 13 22 18 15 15 15 10 Processor 7 | . 4 3 . 8 7 7 7 10 Hackware 1 | . . . . . . . 7 4 Energy Gun 5 | . 5 6 15 8 2 6 7 . Energy Cannon 2 | . 8 8 6 . . 3 . 3 Ballistic Gun 4 | . 14 7 . 5 4 . . 4 Ballistic Cannon 3 | . . . . 3 5 3 7 3 Naked Turns . | . . . . . . . . . Heaviest Build 76 | 13 18 34 34 42 54 56 50 76 Greatest Support 74 | 26 20 20 20 44 66 66 64 74 Greatest Overweight (x) 13 | . . 1 1 2 . 1 . 13 Average Overweight (x) . | . . . 1 . . . . . Largest Inventory Capacity 14 | 6 8 12 12 12 14 14 14 14 Average Capacity 12 | 5 6 8 12 12 12 14 14 13 Most Carried 14 | 6 8 10 12 12 14 14 14 14 Average Carried 10 | 4 6 8 10 10 12 12 12 12 Final Capacity 14 | 6 8 12 12 12 14 14 14 8 Final Carried 14 | 6 8 10 12 11 14 9 14 5 Class Distribution -------------------- 47% | Scavenger-Mutant 36% | Mutant 13% | Generator-Gunner Dominant Class ---------------- Mutant | -10/Materials Mutant | -9/Materials Scavenger-Mutant | -9/Mines Scavenger-Mutant | -8/Materials Mutant | -7/Factory Mutant | -7/Storage Scavenger-Mutant | -7/Recycling Generator-Gunner | -5/Factory Resources | -11 -10 -9 -9 -8 -7 -7 -7 -5 ----------- Run | Scr Mat Mat Min Mat Fac Sto Rec Fac Matter Collected 3271 | 339 265 331 45 783 358 377 300 473 Remotely . | . . . . . . . . . Salvage Created 5695 | 162 292 610 134 1606 288 1063 761 779 Parts 263 | 10 18 31 6 76 22 36 35 29 Haulers Intercepted 15 | . 2 3 . 5 1 2 . 2 Recyclers Shooed 5 | . . 1 1 . . 1 1 1 Parts Field Recycled . | . . . . . . . . . Retrieved Matter . | . . . . . . . . . Parts Self-Destructed . | . . . . . . . . . Prevented . | . . . . . . . . . Kills | -11 -10 -9 -9 -8 -7 -7 -7 -5 ------- Run | Scr Mat Mat Min Mat Fac Sto Rec Fac Combat Hostiles Destroyed 83 | . 5 13 3 24 6 15 6 11 Guns 39 | . 3 7 2 17 1 3 5 1 Cannons 31 | . 2 5 1 2 5 12 1 3 AOE 10 | . . 1 . 2 . . . 7 Classes Destroyed 17 | 3 4 2 . 5 1 . 1 1 Worker 9 | 1 . . . 1 . 1 . 6 Builder 2 | . . . . 1 . . . 1 Tunneler 2 | 2 . . . . . . . . Hauler 15 | . 2 3 . 5 1 2 . 2 Recycler 13 | 1 . . . 1 . 5 4 2 Mechanic 1 | . . . . 1 . . . . Operator 4 | . . . . 2 1 1 . . Drone 6 | . . . . . . . 6 . Watcher 6 | . 2 . . 2 1 . . 1 Swarmer 16 | . 3 5 . 4 . 4 . . Grunt 37 | . 2 6 3 13 . 7 . 6 Brawler 1 | . . . . 1 . . . . Duelist 2 | . . 1 . 1 . . . . Protector 1 | . . . . . . . . 1 Sentry 8 | . . 1 . 2 1 4 . . Hunter 7 | . . . . 3 2 . . 2 Programmer 5 | . . . . . 3 . . 2 Best Kill Streak 12 | 1 2 5 2 9 3 12 2 8 Combat Bots Only 8 | . 2 5 2 4 2 8 2 5 Max Kills in Single Turn 8 | 1 1 1 1 2 1 2 1 8 Gunslinging . | . . . . . . . . . Exploded 2 | . . 1 . 1 . . . 2 Melee . | . . . . . . . . . Uniques/NPCs Destroyed . | . . . . . . . . . Combat | -11 -10 -9 -9 -8 -7 -7 -7 -5 -------- Run | Scr Mat Mat Min Mat Fac Sto Rec Fac Damage Taken 7985 | . 259 512 204 2206 181 1194 . 3429 Core 1835 | . 58 79 31 421 46 182 . 1018 Absorbed by Shields 445 | . . . . . . . . 445 Core Remaining (%) 67 | 100 76 . 72 23 . . 67 . Volleys Fired 409 | 13 41 42 13 131 25 62 42 40 Largest 3 | 2 2 2 2 2 2 2 2 3 Hottest 174 | 60 91 119 103 120 149 149 113 174 Shots Fired 765 | 26 75 73 26 236 46 115 84 84 Gun 496 | 26 65 44 15 191 21 52 42 40 Cannon 259 | . 10 29 11 45 25 63 42 34 Launcher 10 | . . . . . . . . 10 Special . | . . . . . . . . . Kinetic 350 | 13 41 33 . 102 33 38 42 48 Thermal 244 | 13 34 11 13 50 8 52 42 21 Explosive 5 | . . . . . . . . 5 Electromagnetic 166 | . . 29 13 84 5 25 . 10 Robot Hit Streak 29 | 4 9 11 6 20 11 29 6 12 Robot Miss Streak 7 | 2 5 5 2 6 3 3 7 3 Penetration Max 1 | . . . . . . . . 1 Secondary Targets . | . . . . . . . . . Shots Hit Robots 509 | 14 44 46 19 172 32 90 32 60 Core Hits 244 | 5 14 19 5 79 16 43 18 45 Critical Hits 3 | 1 . 1 . . 1 . . . Critical Kills 1 | . . 1 . . . . . . Critical Parts Destroyed 2 | 1 . . . . 1 . . . Melee Attacks . | . . . . . . . . . Impact . | . . . . . . . . . Slashing . | . . . . . . . . . Piercing . | . . . . . . . . . Sneak Attacks . | . . . . . . . . . Combat Hostiles . | . . . . . . . . . Follow-up Attacks . | . . . . . . . . . Damage Inflicted 12400 | 148 551 948 241 3645 708 2067 821 3271 Guns 5687 | 148 451 350 126 2514 241 915 397 545 Cannons 3994 | . 100 552 115 481 467 1152 424 703 Explosions 2719 | . . 46 . 650 . . . 2023 Melee . | . . . . . . . . . Ramming . | . . . . . . . . . Kinetic 4060 | 74 276 251 . 1016 588 737 424 694 Thermal 4611 | 74 275 145 92 1235 68 915 397 1410 Explosive 998 | . . . . . . . . 998 Electromagnetic 2731 | . . 552 149 1394 52 415 . 169 Impact . | . . . . . . . . . Slashing . | . . . . . . . . . Piercing . | . . . . . . . . . Highest Corruption 5 | . 1 . . 5 . . . 2 Average Corruption 3 | . 1 . . 4 . . . 2 Corruption Purged 2 | . . . . 2 . . . . Effects 50 | . 2 . . 43 . . . 5 Message Errors 15 | . 1 . . 11 . . . 3 Matter Fused 7 | . . . . 7 . . . . Energy Discharges 5 | . . . . 5 . . . . Parts Rejected 3 | . . . . 3 . . . . Data Loss (minor) 5 | . . . . 4 . . . 1 Targeting Errors 12 | . 1 . . 11 . . . . Weapon Failures 3 | . . . . 2 . . . 1 Overload Shots . | . . . . . . . . . Overflow Damage 486 | . . 5 . 81 45 38 22 295 Projectiles 123 | . . 5 . 11 45 38 22 2 Explosions 363 | . . . . 70 . . . 293 Melee . | . . . . . . . . . Knockbacks 17 | . . . . 4 2 5 5 1 Impact . | . . . . . . . . . Kinetic 17 | . . . . 4 2 5 5 1 Secondary . | . . . . . . . . . Self-Inflicted Damage 717 | . . . . 180 . . . 537 Shots 13 | . . . . 5 . . . 8 Rammed . | . . . . . . . . . Targets Rammed . | . . . . . . . . . Kicked . | . . . . . . . . . Crushed . | . . . . . . . . . Highest Temperature 344 | . 240 134 117 344 6 48 . 63 Average Temperature 48 | . 86 38 45 59 2 15 . 12 Received Heat Transfer 1411 | . 72 84 114 639 . 324 . 178 Siege Activations . | . . . . . . . . . Robots Corrupted 4 | . . . . 4 . . . . Combat Hostiles 3 | . . . . 3 . . . . Parts Fried 10 | . . . . 8 . 1 . 1 Impact Corruptions . | . . . . . . . . . Robots Melted . | . . . . . . . . . Combat Hostiles . | . . . . . . . . . Parts Melted 5 | . 2 . . . . 2 . 1 Heat Transferred 7322 | 175 703 224 181 1711 150 1854 962 1362 Parts Sabotaged 2 | . . . . . . . . 2 Parts Stolen . | . . . . . . . . . Parts Stripped . | . . . . . . . . . Power Chain Reactions 11 | . . 1 . 9 . . . 1 Missiles Intercepted . | . . . . . . . . . Alert | -11 -10 -9 -9 -8 -7 -7 -7 -5 ------- Run | Scr Mat Mat Min Mat Fac Sto Rec Fac Peak Influence 1236 | 20 195 401 222 372 186 218 256 1236 Initial 914 | . 13 2 92 86 86 1 76 914 Average 269 | 8 95 182 173 195 71 81 120 852 Maximum Alert Level 4 | . . 2 1 1 . 1 1 4 Low Security (%) 64 | 100 100 56 63 50 100 96 89 . Level 1 16 | . . 41 36 49 . 3 10 . Level 2 3 | . . 2 . . . . . 19 Level 3 14 | . . . . . . . . 73 Level 4 1 | . . . . . . . . 7 Level 5 . | . . . . . . . . . High Security . | . . . . . . . . . Max Security . | . . . . . . . . . Squads Dispatched 21 | . 1 1 1 6 4 1 . 7 Investigation 1 | . . . . 1 . . . . Extermination 5 | . . . . . 3 . . 2 Reinforcement 12 | . 1 1 . 5 1 1 . 3 Assault 3 | . . . 1 . . . . 2 Garrison . | . . . . . . . . . Intercept . | . . . . . . . . . Construction Impeded 3 | . . . . 2 . . . 1 Haulers Reinforced 2 | . . . . . . . . 2 Stealth | -11 -10 -9 -9 -8 -7 -7 -7 -5 --------- Run | Scr Mat Mat Min Mat Fac Sto Rec Fac Distress Signals 12 | . 2 4 . 5 . . . 1 Communications Jammed 2 | . . . . . . . 2 . Distress Signals . | . . . . . . . . . Times Spotted 168 | . 10 25 7 48 12 16 27 23 Peak Tracking Total 10 | . 5 10 5 5 1 5 4 9 Tactical Retreats 6 | . . 3 . 2 . 1 . . Traps | -11 -10 -9 -9 -8 -7 -7 -7 -5 ------- Run | Scr Mat Mat Min Mat Fac Sto Rec Fac Traps Triggered 4 | . 1 . . 2 . . . 1 Indirectly . | . . . . . . . . . Trap Hack Attempts . | . . . . . . . . . Triggered . | . . . . . . . . . Disarmed . | . . . . . . . . . Reprogrammed . | . . . . . . . . . Reused . | . . . . . . . . . Traps Extracted . | . . . . . . . . . Installed . | . . . . . . . . . Triggered . | . . . . . . . . . Machines | -11 -10 -9 -9 -8 -7 -7 -7 -5 ---------- Run | Scr Mat Mat Min Mat Fac Sto Rec Fac Machines Disabled 27 | . 1 1 1 3 1 1 1 18 Max in Single Turn 15 | . 1 1 1 1 1 1 1 15 Machines Sabotaged . | . . . . . . . . . Garrisons Compromised . | . . . . . . . . . Overloaded Fab Kills . | . . . . . . . . . Fab Network Shutdowns . | . . . . . . . . . Hacking | -11 -10 -9 -9 -8 -7 -7 -7 -5 --------- Run | Scr Mat Mat Min Mat Fac Sto Rec Fac Machines Accessed 21 | . 3 . . 2 4 . 10 2 Terminals 12 | . 2 . . 1 2 . 5 2 Fabricators 1 | . . . . . 1 . . . Repair Stations 3 | . 1 . . 1 1 . . . Recycling Units 5 | . . . . . . . 5 . Scanalyzers . | . . . . . . . . . Garrison Access . | . . . . . . . . . Total Hacks 60 | . 11 . . 10 8 . 27 4 Successful 33 | . 7 . . 8 3 . 11 4 Failed 26 | . 4 . . 2 5 . 15 . Catastrophic 5 | . 1 . . . 2 . 2 . Database Lockouts 1 | . . . . . . . 1 . Manual 21 | . 1 . . . . 2 14 4 Terminals 32 | . 5 . . 5 4 . 14 4 Fabricators 3 | . . . . . 3 . . . Repair Stations 12 | . 6 . . 5 1 . . . Recycling Units 13 | . . . . . . . 13 . Scanalyzers . | . . . . . . . . . Garrison Access . | . . . . . . . . . Terminal Hacks 17 | . 4 . . 4 2 . 3 4 Record 8 | . 2 . . 1 . . 1 4 Part Schematic 1 | . . . . . 1 . . . Robot Analysis 1 | . . . . 1 . . . . Prototype ID Bank 2 | . 1 . . . . . 1 . Emergency Access Points 1 | . . . . 1 . . . . Alert Level 3 | . 1 . . . 1 . 1 . Dispatch Records 1 | . . . . 1 . . . . Fabricator Hacks 1 | . . . . . 1 . . . Load Schematic 1 | . . . . . 1 . . . Repair Station Hacks 7 | . 3 . . 4 . . . . Scan Component 3 | . 1 . . 2 . . . . Repair 3 | . 1 . . 2 . . . . Refit 1 | . 1 . . . . . . . Recycling Unit Hacks 8 | . . . . . . . 8 . Report Inventory 4 | . . . . . . . 4 . Retrieve Components 4 | . . . . . . . 4 . Scanalyzer . | . . . . . . . . . Garrison Access Hacks . | . . . . . . . . . Unauthorized Hacks . | . . . . . . . . . Terminals . | . . . . . . . . . Fabricators . | . . . . . . . . . Repair Stations . | . . . . . . . . . Recycling Units . | . . . . . . . . . Scanalyzers . | . . . . . . . . . Garrison Access . | . . . . . . . . . Data Cores Recovered . | . . . . . . . . . Used . | . . . . . . . . . Hacking Detections 19 | . 3 . . 1 4 1 8 2 Full Trace Events . | . . . . . . . . . Feedback Events . | . . . . . . . . . Feedback Blocked . | . . . . . . . . . Robot Schematics Acquired . | . . . . . . . . . Robots Built . | . . . . . . . . . Matter . | . . . . . . . . . Time . | . . . . . . . . . Total Robot Build Rating . | . . . . . . . . . Part Schematics Acquired 1 | . . . . . 1 . . . Parts Built . | . . . . . . . . . Matter . | . . . . . . . . . Time . | . . . . . . . . . Total Part Build Rating . | . . . . . . . . . Parts Repaired 3 | . 1 . . 2 . . . . Time 90 | . 26 . . 64 . . . . Parts Recycled . | . . . . . . . . . Recycled Matter . | . . . . . . . . . Retrieved Matter . | . . . . . . . . . Retrieved Components 14 | . . . . . . . 14 . Parts Scanalyzed . | . . . . . . . . . Part Schematics Acquired . | . . . . . . . . . Parts Damaged . | . . . . . . . . . Bothacking | -11 -10 -9 -9 -8 -7 -7 -7 -5 ------------ Run | Scr Mat Mat Min Mat Fac Sto Rec Fac Used RIF Installer . | . . . . . . . . . Robots Hacked . | . . . . . . . . . Non-combat . | . . . . . . . . . Combat . | . . . . . . . . . Robot Hacks Applied . | . . . . . . . . . Relay Couplers Released . | . . . . . . . . . Robots Rewired . | . . . . . . . . . Allies Hacked . | . . . . . . . . . Hacks Repelled . | . . . . . . . . . Allies | -11 -10 -9 -9 -8 -7 -7 -7 -5 -------- Run | Scr Mat Mat Min Mat Fac Sto Rec Fac Total Allies 1 | . . . 1 . . . . . Largest Group 1 | . . . 1 . . . . . Highest-Rated Group 31 | . . . 31 . . . . . Highest-Rated Ally 31 | . . . 31 . . . . . Total Orders . | . . . . . . . . . Ally Attacks 16 | . . . 16 . . . . . Total Damage 294 | . . . 294 . . . . . Kills 3 | . . . 3 . . . . . Allies Corrupted . | . . . . . . . . . Allies Melted . | . . . . . . . . . Intel | -11 -10 -9 -9 -8 -7 -7 -7 -5 ------- Run | Scr Mat Mat Min Mat Fac Sto Rec Fac Robot Analysis Total 1 | . . . . 1 . . . . Derelict Logs Recovered 1 | . . . 1 . . . . . Drone Launches . | . . . . . . . . . Drone Recoveries . | . . . . . . . . . Exploration | -11 -10 -9 -9 -8 -7 -7 -7 -5 ------------- Run | Scr Mat Mat Min Mat Fac Sto Rec Fac Turns Passed 7261 | 221 457 435 212 1600 1216 707 979 1434 Spaces Moved 3699 | 187 360 228 131 777 676 283 453 604 Core 58 | 8 . . . . . . . 50 Treads 2120 | . . . . 154 676 283 453 554 Legs 364 | . . . . 364 . . . . Wheels 1157 | 179 360 228 131 259 . . . . Hover . | . . . . . . . . . Flight . | . . . . . . . . . Fastest Speed 50 | 50 80 80 90 90 145 145 150 150 Average Speed 131 | 83 80 88 90 129 145 147 150 168 Slowest Speed 700 | 90 80 90 90 165 145 165 150 700 Overloaded Moves . | . . . . . . . . . Propulsion Burnouts . | . . . . . . . . . Robots Hopped . | . . . . . . . . . Cave-ins Triggered . | . . . . . . . . . Exploration Rate (%) 24 | 7 37 16 17 43 11 20 60 12 Regions Visited 8 Branch Regions 3 Pre-discovered Areas 1 | . . . 1 . . . . . Known Exits Taken . | . . . . . . . . . Unknown Exits Taken 8 | 1 1 1 1 1 1 1 1 . Scrap Searched . | . . . . . . . . . Spaces Dug . | . . . . . . . . . Terrain Destroyed 151 | . . 4 . 48 4 5 19 71 Melee . | . . . . . . . . . Projectile 34 | . . . . 6 1 5 19 3 AOE 117 | . . 4 . 42 3 . . 68 Terrain Rammed . | . . . . . . . . . Walls Destroyed . | . . . . . . . . . Machines Disabled . | . . . . . . . . . Actions | -11 -10 -9 -9 -8 -7 -7 -7 -5 --------- Run | Scr Mat Mat Min Mat Fac Sto Rec Fac Total 5370 | 222 467 395 199 1135 870 454 669 959 Wait 879 | . 32 63 47 123 115 93 157 249 Move 3691 | 186 359 227 130 776 675 282 452 604 Hop . | . . . . . . . . . Pick Up 103 | 8 7 18 4 20 19 5 8 14 Fast Attach 55 | 8 5 10 . 16 8 . 1 7 Attach 61 | . 1 5 2 24 2 10 1 16 Detach 31 | . 2 4 1 11 3 1 1 8 Swap 46 | 2 5 9 1 16 4 . 3 6 Drop 95 | 5 15 17 1 18 19 1 4 15 Fire 409 | 13 41 42 13 131 25 62 42 40 Melee . | . . . . . . . . . Ram . | . . . . . . . . . Kick . | . . . . . . . . . Crush . | . . . . . . . . . Escape Stasis . | . . . . . . . . . Rewire . | . . . . . . . . . Trap . | . . . . . . . . . Miscellaneous . | . . . . . . . . . Route ------- -11/Scrapyard -10/Materials -9/Materials -9/Mines -8/Materials -7/Factory -7/Storage -7/Recycling -5/Factory History --------- Turn | Location | Event 5 | -11/Scrapyard | Discovered new exit (range 14) 222 | -11/Scrapyard | Entered Materials 305 | -10/Materials | Build established: Mutant 429 | -10/Materials | Repaired Wheel 535 | -10/Materials | Discovered new exit (range 15) 679 | -10/Materials | Entered another Materials area 679 | -9/Materials | Evolved 2 slots: Utility x2 990 | -9/Materials | Lost 6 parts (2n3u1w) 1088 | -9/Materials | Discovered new exit (range 9) 1114 | -9/Materials | Entered Mines 1115 | -9/Mines | Met a Derelict testing a Signal Generator 1244 | -9/Mines | Build established: Scavenger-Mutant 1296 | -9/Mines | Discovered new exit (range 7) 1314 | -9/Mines | Learned location of Storage (-7) 1326 | -9/Mines | Entered Materials 1326 | -8/Materials | Evolved 2 slots: Power x1, Utility x1 1464 | -8/Materials | Lost 4 parts (1p2n1u) 1685 | -8/Materials | Lost 5 parts (2p2n1u) 1880 | -8/Materials | Lost 3 parts (3w) 2237 | -8/Materials | Lost 3 parts (2p1w) 2429 | -8/Materials | Repaired Imp. Heat Sink 2458 | -8/Materials | Repaired Heat Sink 2485 | -8/Materials | Core integrity fell below 50% 2882 | -8/Materials | Discovered new exit (range 16) 2926 | -8/Materials | Entered Factory 2926 | -7/Factory | Evolved 2 slots: Propulsion x1, Utility x1 3512 | -7/Factory | Build established: Mutant 3878 | -7/Factory | Discovered new exit (range 16) 4142 | -7/Factory | Entered Storage 4537 | -7/Storage | Destroyed 8 combat bots 4541 | -7/Storage | Lost 4 parts (1p1u2w) 4798 | -7/Storage | Lost 5 parts (1p2n1u1w) 4843 | -7/Storage | Used back door to open Recycling access 4843 | -7/Storage | Discovered new exit (range 5) 4849 | -7/Storage | Entered Recycling 4877 | -7/Recycling | Spotter reported a threat 4877 | -7/Recycling | Spotter reported a threat 4901 | -7/Recycling | Spotter reported a threat 4943 | -7/Recycling | Spotter reported a threat 4956 | -7/Recycling | Spotter reported a threat 4963 | -7/Recycling | Spotter reported a threat 4965 | -7/Recycling | Spotter reported a threat 4974 | -7/Recycling | Spotter reported a threat 5022 | -7/Recycling | Spotter reported a threat 5069 | -7/Recycling | Spotter reported a threat 5075 | -7/Recycling | Spotter reported a threat 5086 | -7/Recycling | Spotter reported a threat 5098 | -7/Recycling | Spotter reported a threat 5132 | -7/Recycling | Spotter reported a threat 5132 | -7/Recycling | Spotter reported a threat 5150 | -7/Recycling | Build established: Scavenger-Mutant 5175 | -7/Recycling | Spotter reported a threat 5185 | -7/Recycling | Spotter reported a threat 5241 | -7/Recycling | Spotter reported a threat 5398 | -7/Recycling | Spotter reported a threat 5399 | -7/Recycling | Spotter reported a threat 5457 | -7/Recycling | Spotter reported a threat 5499 | -7/Recycling | Spotter reported a threat 5499 | -7/Recycling | Spotter reported a threat 5582 | -7/Recycling | Spotter reported a threat 5670 | -7/Recycling | Spotter reported a threat 5723 | -7/Recycling | Spotter reported a threat 5742 | -7/Recycling | Spotter reported a threat 5805 | -7/Recycling | Discovered new exit (range 7) 5828 | -7/Recycling | Entered Factory 5828 | -5/Factory | Evolved 4 slots: Power x1, Utility x2, Weapon x1 6276 | -5/Factory | Build established: Generator-Gunner 6481 | -5/Factory | Found Prototype Processor 6484 | -5/Factory | Found Prototype Processor 6494 | -5/Factory | Identified Exp. Terrain Scan Processor (x2) 6728 | -5/Factory | First assault squad dispatched 6983 | -5/Factory | Lost 5 parts (5w) 7042 | -5/Factory | Lost 4 parts (1p1n1u1w) 7160 | -5/Factory | Lost 10 parts (2p3n2u3w) 7187 | -5/Factory | Core integrity fell below 50% 7202 | -5/Factory | Core integrity fell below 20% 7225 | -5/Factory | Lost 3 parts (1p2u) 7262 | -5/Factory | Destroyed by H-66 Slayer with Gauss Rifle Last Messages --------------- 07196_ Penetrated by Slug. 07201_ Slug penetrates Wall. 07227_ Penetrated by Slug. 07233_ Acquired Disruptor Cannon. 07240_ Slug penetrates Wall. 07246_ Penetrated by Slug. 07246_ Assembly Bed disabled. 07246_ Penetrated by Slug. 07252_ Slug penetrates Wall. 07256_ C-30 ARC bursts open, deploying its payload. 07256_ G-67 Veteran unfolds itself. 07256_ L-41 Fighter unfolds itself. 07256_ B-60 Warrior unfolds itself. 07256_ E-15 Imp unfolds itself. 07257_ K-01 Serf collects debris. 07259_ Disruptor Cannon blown off. 07259_ Hacking Suite blown off. 07259_ E-15 Imp destroyed. 07262_ Penetrated by Slug. [Achievement: 5k Club] Map ----- +----------------------------------------------------+ | ?????????????????????????????????????????????????? | | ?????????????????????????????????????????????????? | | ?????????????????????????????????????????????????? | | ?????????????????????????????????????????????????? | | ???????????##????????????????????????????????????? | | ?????????? ?????????????????????????????????? | | ?????????? ???????????????????????????????? | | ?????????? #?????????????????????????????? | | ?????????# #?????????????????????????????? | | ?????????# #?????????????????????????????? | | ???????### +?????????????????????????????? | | ??????## #?????????????????????????????? | | ??????# ] #?????????????????????????????? | | ####### #??????????????????????????????? | | #??????????????????????????????? | | #??????????????????????????????? | | #?? """"??????????????????????? | | #?? ??????????????????????? | | #?? ??????????????????????? | | ### ???????????????????????? | | # #????????????????????????? | | ##########???????????????? | | ## # # # #???????????????? | | k g # """" ! #???????????????? | | # k % l #]"""" #???????????????? | | # # lb%@"""" !!#???????????????? | | !% # # """" !!#???????????????? | | # # "" " #???????????????? | | ## #h"" " #???????????????? | | # # #???????????????? | | ####+##### # # # #???????????????? | | ### #####;#####???????????????? | | " " " " " #####+##### #???# #???????????????????? | | " " " " " ## [ *# #???# #???????????????????? | | " " " " " ## # #???# ##############??????? | | " " " " " ## # #???# ?????? | | " " " " " ## """""" # #???# ?????? | | " " " " " ## """""" # #???# ?????? | | " " " " " ## """""" # ##### ?????? | | " " " " " ## """""" # ?????? | | " " " " " ##?? # ^ ?????? | | #???????? # ??????? | | #?????????######################??????? | | ###########??????????????????????????????????????? | | | | | | | | | | | | | +----------------------------------------------------+ Best States ------------- Heat Dissipation 81 Energy Generation 44 Energy Capacity 720 Matter Stores 300 Matter Capacity 300 Sight Range 16 Robot Scan Range 16 Terrain Scan Range 16 Terrain Scan Density 10 Jamming Range 8 Evasion (%) 44 Targeting Accuracy 16 Recoil Reduction 3 Particle Charging 15 Offensive Hacking 10 Item Schematics ----------------- Coil Gun | -7/Factory | Hacked Robot Schematics ------------------ None Fabricated ------------ Nothing Alien Tech Used ----------------- None Achievements -------------- 5k Club Hey, That's Mine! It Was An Accident, I Swear Made in Tau Ceti IV Part-time Mechanic Please Form A Line Power Corrupts Serviceable Loadout Significant Disruption \\IAMDERELICT Challenges ------------ None Game ------ Seed DamperHellfireWand Manual? 0 Play Time 05:45:45 Cumulative 15.3 hours Start 2021.01.02 @ 20:32:10 End 2021.01.03 @ 19:31:18 Sessions 3 Manual Loads 0 Difficulty Rogue Special Mode None Game No. 2 Rogue 2 Adventurer 0 Explorer 0 Win Type - Total 0 Types 0/0/0/0/0/0/0/0/0 Lore% 7 Gallery% 8 Achievement% 9 Wizard Run 0 Options --------- ASCII 1 Keyboard 1 Movement Numpad Keybinds 0 Fullscreen 1 Font 18/TerminusBold Map View 76x50 Tactical HUD 1 Map Filters NONE Filters NONE Steam 1 RUN: 7f8bd6b4-4f5d-40b5-8e26-5b1642976d36